[Event "*** SCC Grand Prix: Titled Tuesday Blitz"]
[Site "Chess.com"]
[Date "2020.07.07"]
[Round "5"]
[White "jaskol95"]
[Black "Haykoooo0o"]
[Result "1-0"]
[WhiteElo "2402"]
[BlackElo "2524"]
[TimeControl "180+1"]
[EndTime "10:57:24 PDT"]
[Termination "jaskol95 won on time"]

1. d4 {[%clk 0:02:15.1]} 1... Nf6 {[%clk 0:02:57.9]} 2. c4 {[%clk 0:02:14.6]}
2... c5 {[%clk 0:02:58.2]} 3. d5 {[%clk 0:02:12.8]} 3... b5 {[%clk 0:02:58.6]}
4. cxb5 {[%clk 0:02:13.3]} 4... a6 {[%clk 0:02:58.3]} 5. Nc3 {[%clk 0:02:14]}
5... g6 {[%clk 0:02:58.2]} 6. e4 {[%clk 0:02:13.5]} 6... Bg7 {[%clk 0:02:58.4]}
7. f4 {[%clk 0:02:12.9]} 7... O-O {[%clk 0:02:58]} 8. e5 {[%clk 0:02:03.5]} 8...
Ne8 {[%clk 0:02:56.7]} 9. Nf3 {[%clk 0:02:03.9]} 9... d6 {[%clk 0:02:55.5]} 10.
Bc4 {[%clk 0:01:54.9]} 10... Nd7 {[%clk 0:02:52.5]} 11. Qe2 {[%clk 0:01:44.4]}
11... Nb6 {[%clk 0:02:51.1]} 12. b3 {[%clk 0:01:41.3]} 12... Nc7 {[%clk
0:02:44.7]} 13. bxa6 {[%clk 0:01:32.3]} 13... Nxc4 {[%clk 0:02:43.5]} 14. bxc4
{[%clk 0:01:32.2]} 14... Bxa6 {[%clk 0:02:41.3]} 15. O-O {[%clk 0:01:29]} 15...
dxe5 {[%clk 0:02:35.6]} 16. Nxe5 {[%clk 0:01:10]} 16... Nxd5 {[%clk 0:02:26.6]}
17. Nxd5 {[%clk 0:00:59.6]} 17... Qxd5 {[%clk 0:02:23.2]} 18. cxd5 {[%clk
0:01:00.3]} 18... Bxe2 {[%clk 0:02:22]} 19. Re1 {[%clk 0:01:00.5]} 19... Bb5
{[%clk 0:02:17.2]} 20. Be3 {[%clk 0:01:00.3]} 20... Rfc8 {[%clk 0:02:09.4]} 21.
Rab1 {[%clk 0:00:57.2]} 21... Be8 {[%clk 0:02:06.1]} 22. Rbc1 {[%clk 0:00:54.8]}
22... f6 {[%clk 0:01:51.8]} 23. Nc6 {[%clk 0:00:51.6]} 23... Bxc6 {[%clk
0:01:49.7]} 24. dxc6 {[%clk 0:00:52.5]} 24... Rxc6 {[%clk 0:01:50.6]} 25. Rxc5
{[%clk 0:00:52.5]} 25... Re6 {[%clk 0:01:48.6]} 26. Rc2 {[%clk 0:00:47.3]} 26...
Kf7 {[%clk 0:01:45.3]} 27. Bf2 {[%clk 0:00:43]} 27... Rxe1+ {[%clk 0:01:43.1]}
28. Bxe1 {[%clk 0:00:43.9]} 28... Ra4 {[%clk 0:01:42.4]} 29. g3 {[%clk
0:00:42.9]} 29... h5 {[%clk 0:01:40.7]} 30. Kg2 {[%clk 0:00:42.1]} 30... Bf8
{[%clk 0:01:34.6]} 31. Rb2 {[%clk 0:00:36.4]} 31... g5 {[%clk 0:01:31.4]} 32.
fxg5 {[%clk 0:00:32.9]} 32... fxg5 {[%clk 0:01:31.2]} 33. Bb4 {[%clk 0:00:31.5]}
33... Bg7 {[%clk 0:01:27.6]} 34. Rf2+ {[%clk 0:00:29.6]} 34... Bf6 {[%clk
0:01:24.7]} 35. a3 {[%clk 0:00:29.8]} 35... Kg6 {[%clk 0:01:23.9]} 36. Re2
{[%clk 0:00:26.5]} 36... Ra7 {[%clk 0:01:20.1]} 37. Ra2 {[%clk 0:00:23.1]} 37...
Ra4 {[%clk 0:01:15.9]} 38. Kf3 {[%clk 0:00:20.9]} 38... g4+ {[%clk 0:01:13.3]}
39. Ke3 {[%clk 0:00:18.7]} 39... Kf5 {[%clk 0:01:11]} 40. Rf2+ {[%clk
0:00:17.3]} 40... Ke6 {[%clk 0:01:10.3]} 41. Kd3 {[%clk 0:00:17.1]} 41... Ra8
{[%clk 0:01:06.9]} 42. Kc4 {[%clk 0:00:17.3]} 42... Rc8+ {[%clk 0:00:58.1]} 43.
Kb5 {[%clk 0:00:17.6]} 43... Kd5 {[%clk 0:00:57.4]} 44. Rd2+ {[%clk 0:00:16.9]}
44... Ke4 {[%clk 0:00:56.3]} 45. a4 {[%clk 0:00:15.8]} 45... Kf3 {[%clk
0:00:53.1]} 46. a5 {[%clk 0:00:13.3]} 46... e5 {[%clk 0:00:48]} 47. a6 {[%clk
0:00:12.1]} 47... e4 {[%clk 0:00:46.4]} 48. Rd6 {[%clk 0:00:09.4]} 48... Be5
{[%clk 0:00:41.5]} 49. Rd5 {[%clk 0:00:07.6]} 49... Bb8 {[%clk 0:00:34.7]} 50.
Rxh5 {[%clk 0:00:06]} 50... e3 {[%clk 0:00:30.7]} 51. Rh7 {[%clk 0:00:06.2]}
51... Re8 {[%clk 0:00:25.2]} 52. a7 {[%clk 0:00:06.5]} 52... Bxa7 {[%clk
0:00:20.6]} 53. Rxa7 {[%clk 0:00:07.4]} 53... Kg2 {[%clk 0:00:18]} 54. Ra1
{[%clk 0:00:07.9]} 54... Kxh2 {[%clk 0:00:17.9]} 55. Be1 {[%clk 0:00:08.5]}
55... Kg2 {[%clk 0:00:07]} 56. Kc4 {[%clk 0:00:08.7]} 56... Kf3 {[%clk
0:00:07.2]} 57. Kd4 {[%clk 0:00:08.7]} 57... Rd8+ {[%clk 0:00:07.9]} 58. Ke5
{[%clk 0:00:09]} 58... Ke2 {[%clk 0:00:08.4]} 59. Kf5 {[%clk 0:00:08.5]} 59...
Kf3 {[%clk 0:00:08.2]} 60. Ke5 {[%clk 0:00:08.1]} 60... Re8+ {[%clk 0:00:08.5]}
61. Kf5 {[%clk 0:00:08.5]} 61... Rf8+ {[%clk 0:00:08.6]} 62. Kg5 {[%clk
0:00:08.3]} 62... Rg8+ {[%clk 0:00:07]} 63. Kf5 {[%clk 0:00:08.9]} 1-0

[Event "*** SCC Grand Prix: Titled Tuesday Blitz"]
[Site "Chess.com"]
[Date "2020.07.07"]
[Round "5"]
[White "FLamps8"]
[Black "Gloomy_Wanderer"]
[Result "0-1"]
[WhiteElo "2581"]
[BlackElo "2755"]
[TimeControl "180+1"]
[EndTime "10:57:26 PDT"]
[Termination "Gloomy_Wanderer won by resignation"]

1. d4 {[%clk 0:03:00.9]} 1... Nf6 {[%clk 0:02:59.2]} 2. c4 {[%clk 0:03:00.2]}
2... e6 {[%clk 0:02:59.4]} 3. Nf3 {[%clk 0:02:59.9]} 3... d5 {[%clk 0:02:59.5]}
4. Nc3 {[%clk 0:02:58.8]} 4... Bb4 {[%clk 0:02:59.3]} 5. Bg5 {[%clk 0:02:55.9]}
5... h6 {[%clk 0:02:59.2]} 6. Bxf6 {[%clk 0:02:56.3]} 6... Qxf6 {[%clk
0:02:59.3]} 7. e3 {[%clk 0:02:54]} 7... O-O {[%clk 0:02:58.8]} 8. Bd3 {[%clk
0:02:48.1]} 8... dxc4 {[%clk 0:02:58.5]} 9. Bxc4 {[%clk 0:02:49]} 9... c5 {[%clk
0:02:58.7]} 10. a3 {[%clk 0:02:48.2]} 10... Ba5 {[%clk 0:02:57.5]} 11. O-O
{[%clk 0:02:45.6]} 11... cxd4 {[%clk 0:02:57.8]} 12. Qxd4 {[%clk 0:02:42.6]}
12... Qxd4 {[%clk 0:02:57.2]} 13. Nxd4 {[%clk 0:02:43.5]} 13... a6 {[%clk
0:02:57.5]} 14. b4 {[%clk 0:02:32.9]} 14... Bb6 {[%clk 0:02:57.3]} 15. Rac1
{[%clk 0:02:27.2]} 15... Bd7 {[%clk 0:02:51.7]} 16. Rfd1 {[%clk 0:02:23.1]}
16... Rc8 {[%clk 0:02:51]} 17. Be2 {[%clk 0:02:02]} 17... Nc6 {[%clk 0:02:44.4]}
18. Nf5 {[%clk 0:01:57.7]} 18... Rc7 {[%clk 0:02:32.7]} 19. Nd6 {[%clk 0:01:46]}
19... Ne5 {[%clk 0:02:28.9]} 20. Nce4 {[%clk 0:01:34.2]} 20... Rxc1 {[%clk
0:02:27.4]} 21. Rxc1 {[%clk 0:01:35.1]} 21... Bc6 {[%clk 0:02:28]} 22. Nc5
{[%clk 0:01:27.7]} 22... Bxc5 {[%clk 0:01:51.4]} 23. Rxc5 {[%clk 0:01:25.6]}
23... Nd7 {[%clk 0:01:51.6]} 24. Rc3 {[%clk 0:01:21.8]} 24... Nb6 {[%clk
0:01:45.8]} 25. Bf3 {[%clk 0:01:12.4]} 25... Rd8 {[%clk 0:01:45.7]} 26. Bxc6
{[%clk 0:01:04.5]} 26... Rxd6 {[%clk 0:01:45]} 27. Bf3 {[%clk 0:01:04.1]} 27...
Rd7 {[%clk 0:01:35.9]} 28. g3 {[%clk 0:01:03.1]} 28... Kf8 {[%clk 0:01:35.2]}
29. h4 {[%clk 0:00:59.5]} 29... Ke7 {[%clk 0:01:34.6]} 30. Kg2 {[%clk
0:00:50.4]} 30... Kd8 {[%clk 0:01:34.5]} 31. g4 {[%clk 0:00:47.4]} 31... g5
{[%clk 0:01:33.8]} 32. hxg5 {[%clk 0:00:46.3]} 32... hxg5 {[%clk 0:01:34.7]} 33.
Rc1 {[%clk 0:00:45.3]} 33... Rc7 {[%clk 0:01:33]} 34. Rh1 {[%clk 0:00:41.9]}
34... Ke7 {[%clk 0:01:26.2]} 35. Rh5 {[%clk 0:00:31.4]} 35... Kf6 {[%clk
0:01:25.7]} 36. Rh8 {[%clk 0:00:30.6]} 36... Nc4 {[%clk 0:01:25.8]} 37. a4
{[%clk 0:00:23.2]} 37... Nd6 {[%clk 0:01:20.5]} 38. Rd8 {[%clk 0:00:20]} 38...
Ke7 {[%clk 0:01:20.4]} 39. Rg8 {[%clk 0:00:20.1]} 39... Kf6 {[%clk 0:01:10.5]}
40. Rd8 {[%clk 0:00:18.6]} 40... Ke5 {[%clk 0:01:11.1]} 41. Kg3 {[%clk
0:00:08.4]} 41... b5 {[%clk 0:01:05.9]} 42. a5 {[%clk 0:00:07.6]} 42... Rc4
{[%clk 0:01:06]} 43. Ra8 {[%clk 0:00:07.6]} 43... Rxb4 {[%clk 0:01:06]} 44. Rxa6
{[%clk 0:00:08]} 44... Ra4 {[%clk 0:01:06.5]} 45. Ra8 {[%clk 0:00:07.6]} 45...
b4 {[%clk 0:01:04.8]} 46. a6 {[%clk 0:00:07.4]} 46... b3 {[%clk 0:01:04.1]} 47.
Rb8 {[%clk 0:00:07.1]} 47... Rxa6 {[%clk 0:01:03.5]} 48. Rxb3 {[%clk 0:00:07.5]}
48... Ra2 {[%clk 0:00:58.8]} 49. Rc3 {[%clk 0:00:07.3]} 49... Rd2 {[%clk
0:00:58.1]} 50. Rc5+ {[%clk 0:00:06.9]} 50... Kf6 {[%clk 0:00:58.6]} 51. Ra5
{[%clk 0:00:06.4]} 51... Nc4 {[%clk 0:00:57.8]} 52. Rc5 {[%clk 0:00:06.3]} 52...
Ne5 {[%clk 0:00:57.4]} 53. Ra5 {[%clk 0:00:04.8]} 53... Nd3 {[%clk 0:00:56.8]}
54. Ra1 {[%clk 0:00:03.3]} 54... Nxf2 {[%clk 0:00:41.8]} 55. Rf1 {[%clk
0:00:03.5]} 55... Nd3 {[%clk 0:00:42.1]} 56. Be4+ {[%clk 0:00:03.6]} 56... Kg7
{[%clk 0:00:41.2]} 57. Bxd3 {[%clk 0:00:03.8]} 57... Rxd3 {[%clk 0:00:42.1]} 58.
Kf3 {[%clk 0:00:04.4]} 58... Ra3 {[%clk 0:00:40.9]} 59. Rb1 {[%clk 0:00:04.3]}
59... Kf6 {[%clk 0:00:40.3]} 60. Rb5 {[%clk 0:00:04.4]} 60... Ra1 {[%clk
0:00:40.2]} 61. Kf2 {[%clk 0:00:03.9]} 61... Ra2+ {[%clk 0:00:40.4]} 62. Kf3
{[%clk 0:00:04]} 62... Ra8 {[%clk 0:00:40.2]} 63. Rc5 {[%clk 0:00:04.2]} 63...
Rf8 {[%clk 0:00:40]} 64. Rb5 {[%clk 0:00:04.3]} 64... Kg6 {[%clk 0:00:40.3]} 65.
Rb6 {[%clk 0:00:04]} 65... Rd8 {[%clk 0:00:40.6]} 66. Ra6 {[%clk 0:00:03.9]}
66... Rd5 {[%clk 0:00:40.3]} 67. Rb6 {[%clk 0:00:03.7]} 67... Kf6 {[%clk
0:00:40.6]} 68. Ra6 {[%clk 0:00:03.5]} 68... Ke5 {[%clk 0:00:40.8]} 69. Ra7
{[%clk 0:00:03.6]} 69... f6 {[%clk 0:00:41.2]} 70. Ra6 {[%clk 0:00:03.4]} 70...
f5 {[%clk 0:00:40.9]} 71. Ra4 {[%clk 0:00:03.5]} 71... Rb5 {[%clk 0:00:40]} 72.
Rc4 {[%clk 0:00:03.1]} 72... Rb3 {[%clk 0:00:33.4]} 73. Rc5+ {[%clk 0:00:03.2]}
73... Kf6 {[%clk 0:00:31.6]} 74. gxf5 {[%clk 0:00:02.8]} 74... exf5 {[%clk
0:00:32.2]} 75. Rc6+ {[%clk 0:00:03.1]} 75... Kf7 {[%clk 0:00:32.6]} 76. Rc5
{[%clk 0:00:02.9]} 76... Kg6 {[%clk 0:00:33]} 77. Rc6+ {[%clk 0:00:02.8]} 77...
Kh5 {[%clk 0:00:33.3]} 78. Rc5 {[%clk 0:00:02.8]} 78... f4 {[%clk 0:00:33.7]}
79. Re5 {[%clk 0:00:01.1]} 79... Rxe3+ {[%clk 0:00:20.5]} 80. Rxe3 {[%clk
0:00:02]} 80... fxe3 {[%clk 0:00:20.8]} 0-1

[Event "*** SCC Grand Prix: Titled Tuesday Blitz"]
[Site "Chess.com"]
[Date "2020.07.07"]
[Round "5"]
[White "Kaua18"]
[Black "Irishchessman16"]
[Result "1-0"]
[WhiteElo "2223"]
[BlackElo "2414"]
[TimeControl "180+1"]
[EndTime "10:57:35 PDT"]
[Termination "Kaua18 won on time"]

1. e4 {[%clk 0:02:40.8]} 1... e5 {[%clk 0:02:58.2]} 2. Nf3 {[%clk 0:02:38.8]}
2... Nc6 {[%clk 0:02:58.7]} 3. d4 {[%clk 0:02:38.7]} 3... exd4 {[%clk
0:02:58.2]} 4. Bc4 {[%clk 0:02:39.4]} 4... Nf6 {[%clk 0:02:56.9]} 5. e5 {[%clk
0:02:39.9]} 5... Ne4 {[%clk 0:02:57.1]} 6. Qe2 {[%clk 0:02:35.8]} 6... Nc5
{[%clk 0:02:46.9]} 7. c3 {[%clk 0:02:36.1]} 7... dxc3 {[%clk 0:02:44]} 8. O-O
{[%clk 0:02:23.6]} 8... Be7 {[%clk 0:02:31.4]} 9. Nxc3 {[%clk 0:02:19.5]} 9...
O-O {[%clk 0:02:30.6]} 10. Bf4 {[%clk 0:02:18.5]} 10... Ne6 {[%clk 0:02:28.4]}
11. Bg3 {[%clk 0:02:18]} 11... b6 {[%clk 0:01:50.3]} 12. Rfd1 {[%clk 0:02:08]}
12... Bb7 {[%clk 0:01:50.1]} 13. Nd5 {[%clk 0:01:58.3]} 13... Na5 {[%clk
0:01:44.8]} 14. Nxe7+ {[%clk 0:01:53]} 14... Qxe7 {[%clk 0:01:43.2]} 15. Bd5
{[%clk 0:01:50]} 15... Bxd5 {[%clk 0:01:36.1]} 16. Rxd5 {[%clk 0:01:50.4]} 16...
Nb7 {[%clk 0:01:10.1]} 17. Rad1 {[%clk 0:01:48]} 17... Rfd8 {[%clk 0:00:59.2]}
18. Qd2 {[%clk 0:01:43.5]} 18... Nbc5 {[%clk 0:00:47.6]} 19. Nd4 {[%clk
0:01:04.7]} 19... Ne4 {[%clk 0:00:44]} 20. Qc2 {[%clk 0:00:56.5]} 20... Nxg3
{[%clk 0:00:42.8]} 21. hxg3 {[%clk 0:00:54.8]} 21... Nxd4 {[%clk 0:00:39.6]} 22.
R1xd4 {[%clk 0:00:51.1]} 22... c6 {[%clk 0:00:39.7]} 23. Rd6 {[%clk 0:00:46.6]}
23... Qxe5 {[%clk 0:00:38.9]} 24. Rxd7 {[%clk 0:00:38.2]} 24... Rxd7 {[%clk
0:00:35.7]} 25. Rxd7 {[%clk 0:00:38.3]} 25... c5 {[%clk 0:00:33]} 26. Qc4 {[%clk
0:00:34.6]} 26... Qe6 {[%clk 0:00:22.7]} 27. Qxe6 {[%clk 0:00:29.5]} 27... fxe6
{[%clk 0:00:22.4]} 28. Re7 {[%clk 0:00:28.3]} 28... Kf8 {[%clk 0:00:22]} 29.
Rxe6 {[%clk 0:00:28.4]} 29... Rd8 {[%clk 0:00:22.6]} 30. Re2 {[%clk 0:00:27.7]}
30... Rd1+ {[%clk 0:00:20.4]} 31. Kh2 {[%clk 0:00:27.3]} 31... Ra1 {[%clk
0:00:20.1]} 32. a3 {[%clk 0:00:27]} 32... Ra2 {[%clk 0:00:20.3]} 33. g4 {[%clk
0:00:24.2]} 33... Kf7 {[%clk 0:00:20.4]} 34. Kg3 {[%clk 0:00:24.4]} 34... c4
{[%clk 0:00:20.7]} 35. Rc2 {[%clk 0:00:20.4]} 35... Ke6 {[%clk 0:00:18]} 36. Kf4
{[%clk 0:00:20.2]} 36... Kd5 {[%clk 0:00:17.9]} 37. Ke3 {[%clk 0:00:18.4]} 37...
Kc5 {[%clk 0:00:17]} 38. Kd2 {[%clk 0:00:18.5]} 38... b5 {[%clk 0:00:17.1]} 39.
Kc3 {[%clk 0:00:18.7]} 39... Ra1 {[%clk 0:00:16.9]} 40. Re2 {[%clk 0:00:18.6]}
40... Rd1 {[%clk 0:00:17]} 41. Re5+ {[%clk 0:00:17.7]} 41... Kd6 {[%clk
0:00:16.2]} 42. Rxb5 {[%clk 0:00:17.5]} 42... Rf1 {[%clk 0:00:16.4]} 43. Rf5
{[%clk 0:00:16.8]} 43... Rg1 {[%clk 0:00:15.9]} 44. g3 {[%clk 0:00:16.6]} 44...
Rc1+ {[%clk 0:00:15.4]} 45. Kb4 {[%clk 0:00:16.4]} 45... Rb1 {[%clk 0:00:13.6]}
46. Kc3 {[%clk 0:00:15.2]} 46... Rc1+ {[%clk 0:00:14]} 47. Kb4 {[%clk
0:00:14.8]} 47... Rb1 {[%clk 0:00:14.2]} 48. Kxc4 {[%clk 0:00:15.7]} 48... Rxb2
{[%clk 0:00:14.1]} 49. a4 {[%clk 0:00:15.1]} 49... a5 {[%clk 0:00:11.6]} 50. Rf7
{[%clk 0:00:13.6]} 50... Rb4+ {[%clk 0:00:11.1]} 51. Kc3 {[%clk 0:00:13.6]}
51... Rxg4 {[%clk 0:00:11]} 52. Kb3 {[%clk 0:00:11.1]} 52... Rg5 {[%clk
0:00:10.8]} 53. Rf4 {[%clk 0:00:09]} 53... Kc5 {[%clk 0:00:10.5]} 54. Rc4+
{[%clk 0:00:08.4]} 54... Kd5 {[%clk 0:00:10.2]} 55. Rf4 {[%clk 0:00:09.3]} 55...
Kc5 {[%clk 0:00:10.3]} 56. g4 {[%clk 0:00:09.2]} 56... h5 {[%clk 0:00:09.6]} 57.
gxh5 {[%clk 0:00:07.5]} 57... Rxh5 {[%clk 0:00:09.6]} 58. f3 {[%clk 0:00:08]}
58... Rg5 {[%clk 0:00:07.9]} 59. Rf7 {[%clk 0:00:07.1]} 59... Rg3 {[%clk
0:00:07.3]} 60. Rc7+ {[%clk 0:00:07]} 60... Kd4 {[%clk 0:00:06.8]} 61. Rc4+
{[%clk 0:00:06]} 61... Ke3 {[%clk 0:00:06.8]} 62. Rc3+ {[%clk 0:00:02.2]} 62...
Kf4 {[%clk 0:00:06.9]} 63. Kc4 {[%clk 0:00:02]} 63... Rxf3 {[%clk 0:00:07.1]}
64. Rc2 {[%clk 0:00:02.5]} 64... Ra3 {[%clk 0:00:05.9]} 65. Kb5 {[%clk
0:00:02.8]} 65... g5 {[%clk 0:00:06.2]} 66. Kxa5 {[%clk 0:00:03.7]} 66... g4
{[%clk 0:00:06.6]} 67. Kb5 {[%clk 0:00:03.2]} 67... g3 {[%clk 0:00:06.4]} 68. a5
{[%clk 0:00:03.8]} 68... Kf3 {[%clk 0:00:05.8]} 69. a6 {[%clk 0:00:04.1]} 69...
g2 {[%clk 0:00:05.9]} 70. Rc1 {[%clk 0:00:02.2]} 70... Rb3+ {[%clk 0:00:04.3]}
71. Ka5 {[%clk 0:00:02.2]} 71... Ra3+ {[%clk 0:00:02.1]} 72. Kb6 {[%clk
0:00:02.4]} 72... Kf2 {[%clk 0:00:01.7]} 73. Ka7 {[%clk 0:00:02.3]} 73... Rc3
{[%clk 0:00:01.2]} 74. Ra1 {[%clk 0:00:02.3]} 74... Rb3 {[%clk 0:00:01.2]} 75.
Ka8 {[%clk 0:00:01.8]} 75... g1=Q {[%clk 0:00:01.4]} 76. a7 {[%clk 0:00:02.7]}
1-0

[Event "*** SCC Grand Prix: Titled Tuesday Blitz"]
[Site "Chess.com"]
[Date "2020.07.07"]
[Round "5"]
[White "SGchess01"]
[Black "Man-Chuk"]
[Result "1-0"]
[WhiteElo "2634"]
[BlackElo "2844"]
[TimeControl "180+1"]
[EndTime "10:57:42 PDT"]
[Termination "SGchess01 won by resignation"]

1. d4 {[%clk 0:03:00.9]} 1... Nf6 {[%clk 0:02:58.1]} 2. Bf4 {[%clk 0:03:00.7]}
2... g6 {[%clk 0:02:57.3]} 3. Nc3 {[%clk 0:02:59.5]} 3... d5 {[%clk 0:02:54.4]}
4. e3 {[%clk 0:02:59.1]} 4... Bg7 {[%clk 0:02:53.3]} 5. h4 {[%clk 0:02:59.1]}
5... h5 {[%clk 0:02:44.3]} 6. Nf3 {[%clk 0:02:55.8]} 6... Bg4 {[%clk 0:02:42.5]}
7. Be2 {[%clk 0:02:54.8]} 7... c6 {[%clk 0:02:41.8]} 8. Ne5 {[%clk 0:02:53.8]}
8... Bxe2 {[%clk 0:02:42.7]} 9. Qxe2 {[%clk 0:02:54.4]} 9... Nfd7 {[%clk
0:02:43.5]} 10. O-O-O {[%clk 0:02:52.1]} 10... Nxe5 {[%clk 0:02:28.3]} 11. Bxe5
{[%clk 0:02:51.3]} 11... Bxe5 {[%clk 0:02:26.9]} 12. dxe5 {[%clk 0:02:52.2]}
12... Nd7 {[%clk 0:02:19.6]} 13. e4 {[%clk 0:02:48.4]} 13... e6 {[%clk
0:02:15.5]} 14. exd5 {[%clk 0:02:47.8]} 14... cxd5 {[%clk 0:02:09.2]} 15. Nb5
{[%clk 0:02:40.5]} 15... Kf8 {[%clk 0:02:02.2]} 16. f4 {[%clk 0:02:38.9]} 16...
Nc5 {[%clk 0:01:44.7]} 17. Nd6 {[%clk 0:02:34.8]} 17... Qa5 {[%clk 0:01:42.1]}
18. Kb1 {[%clk 0:02:33.7]} 18... Qb4 {[%clk 0:01:37.8]} 19. Rh3 {[%clk 0:02:19]}
19... Kg7 {[%clk 0:01:31.5]} 20. a3 {[%clk 0:02:15.2]} 20... Qb6 {[%clk
0:01:29.8]} 21. Rg3 {[%clk 0:01:58.3]} 21... Kf8 {[%clk 0:01:17.2]} 22. Rc3
{[%clk 0:01:56.2]} 22... Rd8 {[%clk 0:01:07.3]} 23. g3 {[%clk 0:01:35.1]} 23...
Kg7 {[%clk 0:01:04.5]} 24. Qe3 {[%clk 0:01:16]} 24... Na4 {[%clk 0:01:03.2]} 25.
Rb3 {[%clk 0:01:15.9]} 25... Qxe3 {[%clk 0:01:02.2]} 26. Rxe3 {[%clk 0:01:16.8]}
26... Rd7 {[%clk 0:00:54]} 27. c4 {[%clk 0:01:12.1]} 27... Nb6 {[%clk
0:00:46.8]} 28. c5 {[%clk 0:01:12.2]} 28... Nc8 {[%clk 0:00:44.1]} 29. b4 {[%clk
0:01:10.2]} 29... Ne7 {[%clk 0:00:40.7]} 30. b5 {[%clk 0:01:08.3]} 30... Rc7
{[%clk 0:00:37.7]} 31. Rc3 {[%clk 0:01:06.1]} 31... Nf5 {[%clk 0:00:37.6]} 32.
Kb2 {[%clk 0:00:59]} 32... d4 {[%clk 0:00:36.4]} 33. Nxf5+ {[%clk 0:00:58.7]}
33... gxf5 {[%clk 0:00:34.4]} 34. Rxd4 {[%clk 0:00:59.6]} 34... Rhc8 {[%clk
0:00:34.5]} 35. Rdc4 {[%clk 0:00:59.5]} 35... Rd8 {[%clk 0:00:33.6]} 36. Kc2
{[%clk 0:00:55.1]} 36... Rd5 {[%clk 0:00:30.7]} 37. a4 {[%clk 0:00:55.6]} 37...
a6 {[%clk 0:00:22.8]} 38. bxa6 {[%clk 0:00:50.7]} 38... bxa6 {[%clk 0:00:23.7]}
39. c6 {[%clk 0:00:51.4]} 39... f6 {[%clk 0:00:23.7]} 40. exf6+ {[%clk 0:00:51]}
40... Kxf6 {[%clk 0:00:24.6]} 41. Rd3 {[%clk 0:00:51]} 41... Ke7 {[%clk
0:00:23.8]} 42. Rb3 {[%clk 0:00:31]} 42... Kd6 {[%clk 0:00:19.1]} 43. Rb8 {[%clk
0:00:29.2]} 43... Rxc6 {[%clk 0:00:16.9]} 44. Rd8+ {[%clk 0:00:29.3]} 44... Ke7
{[%clk 0:00:09.1]} 45. Rxc6 {[%clk 0:00:28.9]} 45... Rxd8 {[%clk 0:00:09.2]} 46.
Rxa6 {[%clk 0:00:28.7]} 46... Rg8 {[%clk 0:00:09.4]} 47. Ra7+ {[%clk 0:00:28.2]}
47... Kf6 {[%clk 0:00:09.4]} 48. Rd7 {[%clk 0:00:23.2]} 48... Rxg3 {[%clk
0:00:09.3]} 49. Rd3 {[%clk 0:00:23]} 49... Rg4 {[%clk 0:00:06]} 50. a5 {[%clk
0:00:22.9]} 50... Rxf4 {[%clk 0:00:04.8]} 51. Ra3 {[%clk 0:00:22.7]} 51... Rc4+
{[%clk 0:00:05]} 52. Kd3 {[%clk 0:00:22.8]} 52... Rc7 {[%clk 0:00:05.9]} 53. a6
{[%clk 0:00:23.1]} 53... Ra7 {[%clk 0:00:06.1]} 54. Kd4 {[%clk 0:00:23.7]} 54...
e5+ {[%clk 0:00:05.8]} 55. Kd5 {[%clk 0:00:20.8]} 55... f4 {[%clk 0:00:06.2]}
56. Ke4 {[%clk 0:00:20.8]} 56... Ke6 {[%clk 0:00:06.7]} 57. Ra5 {[%clk
0:00:20.9]} 57... Kf6 {[%clk 0:00:07.2]} 58. Ra4 {[%clk 0:00:19.2]} 58... Ke6
{[%clk 0:00:07.2]} 59. Ra2 {[%clk 0:00:18.7]} 59... Kd6 {[%clk 0:00:05.6]} 60.
Ra5 {[%clk 0:00:18.7]} 60... Kc6 {[%clk 0:00:04.4]} 61. Kxe5 {[%clk 0:00:18.5]}
61... f3 {[%clk 0:00:03.7]} 62. Ra2 {[%clk 0:00:17.1]} 62... f2 {[%clk
0:00:02.4]} 63. Rxf2 {[%clk 0:00:16.9]} 63... Re7+ {[%clk 0:00:02.8]} 64. Kf6
{[%clk 0:00:16.3]} 64... Re4 {[%clk 0:00:03.2]} 65. Ra2 {[%clk 0:00:15.5]} 65...
Re8 {[%clk 0:00:02.2]} 66. a7 {[%clk 0:00:15.4]} 66... Ra8 {[%clk 0:00:02.7]}
67. Kg5 {[%clk 0:00:15.7]} 67... Kb7 {[%clk 0:00:03.2]} 68. Kxh5 {[%clk
0:00:16.1]} 68... Rh8+ {[%clk 0:00:03.7]} 69. Kg5 {[%clk 0:00:16.3]} 69... Ka8
{[%clk 0:00:03.2]} 70. h5 {[%clk 0:00:16.5]} 70... Rg8+ {[%clk 0:00:03.7]} 71.
Kh4 {[%clk 0:00:16.9]} 71... Rh8 {[%clk 0:00:02.6]} 72. Ra6 {[%clk 0:00:15.9]}
72... Rh7 {[%clk 0:00:01.5]} 73. h6 {[%clk 0:00:16]} 73... Rh8 {[%clk
0:00:01.5]} 74. Kh5 {[%clk 0:00:16.6]} 74... Re8 {[%clk 0:00:01.9]} 75. h7
{[%clk 0:00:16.5]} 75... Rh8 {[%clk 0:00:02.4]} 76. Kh6 {[%clk 0:00:16]} 76...
Rc8 {[%clk 0:00:03]} 77. Rg6 {[%clk 0:00:16.2]} 77... Rc1 {[%clk 0:00:01.7]} 78.
h8=Q+ {[%clk 0:00:15.6]} 78... Kxa7 {[%clk 0:00:02.6]} 79. Qg7+ {[%clk
0:00:14.5]} 79... Rc7 {[%clk 0:00:02.4]} 80. Qxc7+ {[%clk 0:00:14.2]} 1-0